bitfinex-derivatives/quotes_SOLF0:USTF0_20250818
["timestamp","ask_amount","ask_price","bid_price","bid_amount"]
[1755519003651,137.82,181.72,181.66,0.04145772]
[1755519003856,3.13,181.71,181.67,2.98]
[1755519004559,3.13,181.71,181.66,3.02145772]
[1755519004761,3.13,181.71,181.67,2.98]
[1755519005457,3.13,181.71,181.66,0.04145772]
[1755519005661,3.13,181.71,181.67,2.98]
[1755519006164,3.13,181.71,181.66,0.04145772]
[1755519006365,3.13,181.71,181.68,2.98]
[1755519006564,3.13,181.71,181.66,3.02145772]
[1755519007264,3.13,181.7,181.67,2.98]
[1755519007767,3.13,181.71,181.66,0.04145772]
[1755519008161,3.13,181.71,181.67,2.98]
[1755519008363,3.13,181.71,181.66,3.02145772]
[1755519008563,3.13,181.71,181.66,0.04145772]
[1755519008768,3.13,181.71,181.67,2.98]
[1755519010672,3.13,181.71,181.68,2.98]
[1755519011457,50.91009068,181.74,181.68,2.98]
[1755519011667,3.13,181.71,181.68,2.98]
[1755519011865,3.13,181.71,181.66,0.04145772]
[1755519011866,3.13,181.7,181.69,2.98]
[1755519012067,3.13,181.7,181.66,3.02145772]
[1755519012368,3.13,181.68,181.67,2.98]
[1755519012573,140.39,181.68,181.67,2.98]
[1755519012761,140.39,181.68,181.66,0.04145772]
[1755519012967,3.13,181.67,181.66,3.02145772]
[1755519015972,137.26,181.68,181.66,3.02145772]
[1755519017367,140.39,181.68,181.66,3.02145772]
[1755519017675,137.26,181.68,181.67,2.98]
[1755519017966,141.82154754,181.68,181.67,2.98]
[1755519018166,137.26,181.68,181.67,2.98]
[1755519018568,144.95371681,181.68,181.67,2.98]
[1755519020770,7.69371681,181.68,181.67,2.98]
[1755519020970,144.87371681,181.68,181.67,2.98]
[1755519021572,141.74371681,181.68,181.67,2.98]
[1755519022776,141.75065109,181.68,181.67,2.98]
[1755519023167,4.57065109,181.68,181.67,2.98]
[1755519023372,137.18,181.68,181.67,2.98]
[1755519024376,3.14,181.72,181.67,2.98]
[1755519024575,3.14,181.7,181.67,2.98]
[1755519024875,3.14,181.69,181.67,2.98]
[1755519025072,137.18,181.69,181.67,2.98]
[1755519025274,3.14,181.71,181.67,2.98]
[1755519025578,141.75308517,181.7,181.67,2.98]
[1755519025778,137.18,181.7,181.67,2.98]
[1755519026380,140.32,181.7,181.67,2.98]
[1755519027576,137.18,181.7,181.68,2.91]
[1755519027781,3.14,181.69,181.66,0.04145772]
[1755519027970,3.14,181.69,181.68,2.91]
[1755519030783,3.14,181.73,181.68,2.91]
[1755519031083,141.75799839,181.72,181.66,2.95145772]
[1755519031282,3.14,181.68,181.66,2.95145772]
[1755519031581,3.14,181.69,181.66,2.95145772]
[1755519032279,3.14,181.71,181.67,2.91]
[1755519032584,3.14,181.69,181.68,2.91]
[1755519032881,3.14,181.71,181.68,2.91]
[1755519033082,4.56218211,181.7,181.68,2.91]
[1755519033274,3.14,181.71,181.68,2.91]
[1755519033478,4.56224144,181.7,181.68,2.91]
[1755519033676,3.14,181.71,181.68,2.91]
[1755519033878,4.56205451,181.7,181.68,2.91]
[1755519034083,3.14,181.71,181.68,2.91]
[1755519034281,4.56204242,181.7,181.68,2.91]
[1755519034582,3.14,181.71,181.68,2.91]
[1755519034776,140.3,181.71,181.68,2.91]
[1755519034976,3.14,181.7,181.66,0.04145772]
[1755519035184,3.14,181.7,181.67,2.91]
[1755519035482,140.3,181.7,181.67,2.91]
[1755519036382,3.14,181.69,181.67,2.91]
[1755519037082,137.16,181.7,181.67,2.91]
[1755519037285,140.3,181.7,181.67,2.91]
[1755519039485,137.16,181.7,181.67,2.91]
[1755519040283,137.16,181.7,181.67,8.411]
[1755519040585,137.16,181.72,181.68,2.91]
[1755519040785,137.16,181.72,181.68,8.4106]
[1755519040990,54.05009068,181.74,181.69,2.91]
[1755519041187,140.28,181.73,181.69,2.91]
[1755519041489,3.14,181.72,181.69,2.91]
[1755519041681,3.14,181.72,181.69,2.9490994]
[1755519042680,137.14,181.73,181.69,2.9490994]
[1755519042886,3.14,181.72,181.7,2.91]
[1755519043687,140.28,181.73,181.7,2.91]
[1755519043887,3.14,181.73,181.71,2.91]
[1755519044082,140.28,181.73,181.71,2.91]
[1755519044283,50.91009068,181.74,181.71,2.91]
[1755519044589,140.28,181.73,181.71,2.91]
[1755519049090,137.14,181.73,181.72,2.91]
[1755519049489,137.14,181.73,181.72,8.4096]
[1755519049697,3.14,181.76,181.72,5.4996]
[1755519049890,3.14,181.74,181.73,2.91]
[1755519050203,140.26,181.74,181.73,2.91]
[1755519050393,3.14,181.74,181.73,2.91]
[1755519050593,140.26,181.74,181.73,2.91]
[1755519052501,137.12,181.77,181.73,3.13]
[1755519052701,138.46,181.78,181.73,3.13]
[1755519052999,141.45,181.78,181.73,3.13]
[1755519053597,2.99,181.76,181.73,3.13]
[1755519053795,138.46,181.78,181.73,3.13]
[1755519054004,141.45,181.78,181.73,3.13]
[1755519054204,2.99,181.77,181.72,0.03649332]
[1755519054404,2.99,181.77,181.74,3.13]
[1755519055000,2.99,181.77,181.72,0.03649332]
[1755519055205,2.99,181.77,181.75,3.13]
[1755519055401,4.56365297,181.8,181.72,0.03649332]
[1755519055608,2.99,181.78,181.72,3.16649332]
[1755519055904,22.70108578,181.9,181.72,0.03649332]
[1755519056108,2.99,181.86,181.74,3.13]
[1755519056309,2.99,181.83,181.74,3.13]
[1755519056509,2.99,181.81,181.74,3.13]
[1755519056698,138.88,181.8,181.79,3.13]
[1755519056899,5.52110417,181.87,181.79,3.13]
[1755519057099,2.99,181.83,181.79,3.13]
[1755519057504,2.99,181.83,181.82,3.13]
[1755519057706,2.99,181.83,181.81,0.04041436]
[1755519057911,138.84,181.86,181.81,3.17041436]
[1755519058110,2.99,181.84,181.81,3.17041436]
[1755519058408,2.99,181.86,181.82,3.13]
[1755519058704,138.78,181.85,181.82,3.13]
[1755519058906,141.75,181.84,181.83,3.13]
[1755519059304,2.99,181.84,181.81,3.17041436]
[1755519059509,2.99,181.83,181.82,3.13]
[1755519059811,2.99,181.89,181.82,3.13]
[1755519060109,2.99,181.87,181.82,3.13]
[1755519060312,2.99,181.87,181.83,3.13]
[1755519060506,2.99,181.87,181.81,3.17041436]
[1755519060707,4.53701787,181.86,181.81,3.17041436]
[1755519060909,2.99,181.85,181.82,3.13]
[1755519061108,2.99,181.87,181.82,3.13]
[1755519061514,138.64,181.86,181.82,3.13]
[1755519062110,2.99,181.84,181.83,3.13]
[1755519063103,141.59,181.84,181.83,3.13]
[1755519063704,138.6,181.84,181.83,3.13]
[1755519064116,2.99,181.88,181.83,3.13]
[1755519064311,2.99,181.89,181.83,3.13]
[1755519064614,2.99,181.88,181.83,3.13]
[1755519064807,138.54,181.87,181.84,0.03700344]
[1755519065014,2.99,181.86,181.84,0.03700344]
[1755519065311,2.99,181.86,181.85,3.13]
[1755519065515,138.54,181.87,181.85,3.13]
[1755519065708,138.54,181.86,181.85,3.13]
[1755519066408,141.53,181.86,181.85,3.13]
[1755519066612,2.99,181.86,181.85,3.13]
[1755519067017,142.03,181.86,181.84,0.03700344]
[1755519067213,139.04,181.85,181.84,0.03700344]
[1755519067414,142.03,181.85,181.84,3.16700344]
[1755519067619,139.04,181.85,181.84,3.16700344]
[1755519069016,142.03,181.85,181.84,3.16700344]
[1755519069315,139.04,181.85,181.84,3.16700344]
[1755519070823,142.03,181.85,181.84,3.16700344]
[1755519071617,142.03,181.85,181.84,0.03700344]
[1755519071810,141.83,181.85,181.84,0.03700344]
[1755519072723,141.79,181.85,181.84,3.16700344]
[1755519073115,138.8,181.85,181.84,3.16700344]
[1755519073314,138.78,181.85,181.84,3.16700344]
[1755519073819,138.84,181.85,181.84,3.16700344]
[1755519074322,2.99,181.87,181.84,3.16700344]
[1755519074323,138.8,181.88,181.84,3.16700344]
[1755519074513,50.91009068,181.9,181.84,7.73065641]
[1755519074720,138.76,181.89,181.87,3.13]
[1755519074918,138.76,181.91,181.87,3.13]
[1755519075121,141.75,181.91,181.87,3.13]
[1755519075522,138.74,181.9,181.87,3.16804404]
[1755519075716,141.73,181.9,181.87,3.16804404]
[1755519076118,138.74,181.9,181.87,3.16804404]
[1755519076319,2.99,181.92,181.87,3.16804404]
[1755519076521,138.7,181.91,181.87,3.16804404]
[1755519076721,141.65,181.91,181.87,3.16804404]
[1755519077023,2.99,181.89,181.88,3.13]
[1755519077627,141.65,181.91,181.89,3.13]
[1755519077926,2.99,181.9,181.89,3.13]
[1755519078220,50.91009068,181.95,181.89,3.13]
[1755519078526,143.06409358,181.94,181.9,3.13]
[1755519078727,2.99,181.91,181.9,3.13]
[1755519079725,138.54,181.94,181.89,0.03866167]
[1755519079926,2.99,181.9,181.89,3.16866167]
[1755519080129,141.49,181.9,181.89,3.16866167]
[1755519080525,141.49,181.9,181.89,0.03866167]
[1755519081324,141.49,181.9,181.89,3.16866167]
[1755519081734,2.99,181.9,181.89,3.16866167]
[1755519081935,141.41,181.9,181.89,3.16866167]
[1755519083443,138.42,181.9,181.89,3.16866167]
[1755519083934,141.54,181.9,181.89,0.03866167]
[1755519087932,138.42,181.9,181.82,2.94]
[1755519088128,3.12,181.88,181.82,2.94]
[1755519088332,138.12,181.87,181.78,164.40497146]
[1755519088537,3.12,181.86,181.83,2.94]
[1755519089331,138.06,181.85,181.79,2.94]
[1755519089837,0.03707661,181.86,181.82,5.4964]
[1755519090040,138.07707661,181.86,181.81,2.94]
[1755519090431,0.03707661,181.86,181.85,2.94]
[1755519091942,138.07707661,181.86,181.85,2.94]
[1755519092337,0.03707661,181.86,181.85,2.94]
[1755519095243,0.03707661,181.86,181.85,8.4357]
[1755519097247,0.03707661,181.86,181.85,2.94]
[1755519098645,0.03707661,181.86,181.85,8.4357]
[1755519098844,138.06,181.9,181.86,2.94]
[1755519099644,138.06,181.9,181.86,8.4354]
[1755519099849,138.0,181.91,181.87,2.94]
[1755519100451,3.12,181.9,181.87,2.94]
[1755519100744,138.0,181.91,181.87,2.978787]
[1755519100945,3.12,181.9,181.87,0.038787]
[1755519101945,4.53221641,181.89,181.87,0.038787]
[1755519102140,4.53258869,181.88,181.87,0.038787]
[1755519102344,3.12,181.87,181.81,2.94]
[1755519102539,3.12,181.85,181.79,2.94]
[1755519102757,3.12,181.83,181.79,2.94]
[1755519103046,3.12,181.83,181.8,2.94]
[1755519103237,137.92,181.84,181.79,2.94]
[1755519103443,3.12,181.83,181.79,2.94]
[1755519103843,137.92,181.84,181.8,2.94]
[1755519104139,137.97834453,181.83,181.8,2.94]
[1755519104340,0.03834453,181.83,181.8,2.94]
[1755519104545,137.93834453,181.83,181.78,158.90737146]
[1755519104741,137.93834453,181.83,181.79,2.94]
[1755519105147,141.05834453,181.83,181.79,2.94]
[1755519106249,3.12,181.82,181.79,2.94]
[1755519106451,3.12,181.81,181.8,2.94]
[1755519107146,0.03834453,181.83,181.81,2.94]
[1755519107346,137.83834453,181.83,181.82,2.94]
[1755519107546,137.79834453,181.83,181.82,2.94]
[1755519107845,137.91834453,181.83,181.82,2.94]
[1755519108045,141.01834453,181.83,181.82,2.94]
[1755519108241,3.12,181.82,181.8,2.94]
[1755519108748,3.12,181.82,181.78,158.90737146]
[1755519108749,3.12,181.81,181.74,2.94]
[1755519109443,0.03475033,181.79,181.74,2.94]
[1755519109954,0.03475033,181.79,181.76,5.4982]
[1755519110150,0.03475033,181.79,181.77,2.94]
[1755519110453,140.94,181.82,181.77,2.94]
[1755519110643,3.12,181.81,181.77,2.94]
[1755519110847,137.82,181.82,181.77,8.4381]
[1755519111046,0.03725928,181.81,181.77,5.4981]
[1755519111247,0.03725928,181.81,181.78,2.94]
[1755519112144,0.03725928,181.81,181.73,4.56365297]
[1755519112349,0.03725928,181.81,181.8,4.56365297]
[1755519112648,3.14,181.88,181.81,2.93]
[1755519113150,112.13362894,181.92,181.81,2.93]
[1755519113459,3.14,181.9,181.81,2.93]
[1755519113656,3.14,181.9,181.83,5.4961]
[1755519113856,3.14,181.9,181.85,0.03930241]
[1755519114057,3.14,181.9,181.87,2.93]
[1755519114850,139.68,181.91,181.85,0.03930241]
[1755519115050,3.14,181.9,181.86,2.93]
[1755519116256,3.14,181.9,181.85,0.03930241]
[1755519116653,3.14,181.89,181.88,2.93]
[1755519117352,142.78,181.9,181.88,2.93]
[1755519117554,3.14,181.89,181.88,2.93]
[1755519117959,142.78,181.9,181.89,2.93]
[1755519118861,139.64,181.9,181.87,2.93]
[1755519119159,3.14,181.9,181.87,2.93]
[1755519119350,142.7,181.9,181.87,2.93]
[1755519120148,139.56,181.9,181.87,2.93]
[1755519120353,142.7,181.9,181.88,2.93]
[1755519120652,3.14,181.89,181.88,2.93]
[1755519122957,3.14,181.87,181.86,2.93]
[1755519123561,3.14,181.89,181.85,0.03930241]
[1755519123791,50.91009068,181.93,181.85,0.03930241]
[1755519123792,7.70365297,181.87,181.85,0.03930241]
[1755519123959,3.14,181.85,181.78,2.93]
[1755519124154,3.14,181.83,181.78,2.93]
[1755519124360,3.14,181.83,181.76,2.93]
[1755519125460,0.03987764,181.81,181.76,2.93]
[1755519125961,0.03987764,181.81,181.75,2.93]
[1755519126357,139.5,181.83,181.75,2.93]
[1755519126557,139.5,181.83,181.79,5.4973]
[1755519126757,3.14,181.86,181.8,2.93]
[1755519126955,139.48,181.85,181.8,2.93]
[1755519127264,0.03872202,181.83,181.8,2.93]
[1755519132761,0.03872202,181.83,181.8,5.497]
[1755519132967,0.03872202,181.83,181.81,2.93]
[1755519133468,0.03872202,181.83,181.81,8.4268]
[1755519133670,0.03872202,181.83,181.82,2.93]
[1755519133968,3.14,181.88,181.82,8.4266]
[1755519134169,3.14,181.88,181.83,2.93]
[1755519134763,3.14,181.87,181.83,2.93]
[1755519135274,3.14,181.87,181.83,2.96856342]
[1755519136176,3.14,181.9,181.83,2.96856342]
[1755519143176,3.1,181.93,181.83,2.96856342]
[1755519143377,3.1,181.91,181.83,2.96856342]
[1755519143573,3.1,181.91,181.84,2.98]
[1755519143973,3.1,181.91,181.85,0.03647964]
[1755519144173,3.1,181.91,181.85,3.01647964]
[1755519144378,3.1,181.9,181.85,3.01647964]
[1755519144775,3.1,181.9,181.86,2.98]
[1755519146682,3.1,181.91,181.86,2.98]
[1755519146981,3.1,181.9,181.86,2.98]
[1755519147183,142.4,181.9,181.86,2.98]
[1755519147479,3.1,181.9,181.86,2.98]
[1755519147675,139.28,181.91,181.86,2.98]
[1755519147870,3.1,181.9,181.86,2.98]
[1755519148077,139.28,181.91,181.86,2.98]
[1755519149477,142.38,181.91,181.86,2.98]
[1755519150785,3.1,181.9,181.86,2.98]
[1755519151285,139.28,181.91,181.86,2.98]
[1755519152387,142.38,181.91,181.86,2.98]
[1755519153987,3.1,181.9,181.86,2.98]
[1755519154287,142.38,181.91,181.86,2.98]
[1755519157484,3.1,181.97,181.86,2.98]
[1755519157683,3.1,181.95,181.86,2.98]
[1755519158077,3.1,181.95,181.87,5.4948]
[1755519158386,3.1,181.95,181.89,0.0418023]
[1755519158585,3.1,181.95,181.9,2.98]
[1755519158780,3.1,181.93,181.9,2.98]
[1755519159184,3.1,181.95,181.9,2.98]
[1755519159487,3.1,181.94,181.9,2.98]
[1755519159690,139.12,181.96,181.9,2.98]
[1755519159884,3.1,181.95,181.9,2.98]
[1755519160888,142.22,181.96,181.9,2.98]
[1755519161090,3.1,181.95,181.9,2.98]
[1755519161293,3.1,181.94,181.9,2.98]
[1755519161984,369.46,181.98,181.9,2.98]
[1755519162179,3.1,181.93,181.9,2.98]
[1755519163792,3.1,181.96,181.9,2.98]
[1755519166095,7.66365297,181.96,181.9,2.98]
[1755519166397,3.1,181.94,181.89,0.0418023]
[1755519166586,3.1,181.94,181.89,3.0218023]
[1755519168799,3.1,181.94,181.9,2.98]
[1755519170098,3.1,181.94,181.91,2.98]
[1755519170701,3.1,181.94,181.92,2.98]
[1755519170891,3.1,181.96,181.9,2.98]
[1755519171096,141.52,181.95,181.9,2.98]
[1755519171499,3.1,181.94,181.9,2.98]
[1755519172394,138.38,181.93,181.9,2.98]
[1755519173902,138.34,181.94,181.9,2.98]
[1755519174403,141.23,181.94,181.9,2.98]
[1755519175499,138.34,181.94,181.9,2.98]
[1755519175702,2.89,181.93,181.9,2.98]
[1755519175903,2.89,181.92,181.9,2.98]
[1755519176504,2.89,181.93,181.9,2.98]
[1755519177607,138.34,181.94,181.9,2.98]
[1755519178211,141.23,181.94,181.9,2.98]
[1755519179812,138.34,181.94,181.9,2.98]
[1755519180514,141.23,181.94,181.9,2.98]
[1755519181021,138.34,181.94,181.9,2.98]
[1755519181713,141.23,181.94,181.9,2.98]
[1755519182111,2.89,181.93,181.9,2.98]
[1755519182320,2.89,181.93,181.89,3.0218023]
[1755519182513,138.34,181.94,181.89,3.0218023]
[1755519182713,2.89,181.92,181.89,3.0218023]
[1755519184419,2.89,181.93,181.89,3.0218023]
[1755519186019,2.89,181.93,181.9,2.98]
[1755519186324,2.89,181.93,181.89,0.0418023]
[1755519186517,2.89,181.93,181.89,3.0218023]
[1755519187313,2.89,181.93,181.9,2.98]
[1755519187911,137.92,181.93,181.9,2.98]
[1755519188112,2.89,181.92,181.91,2.98]
[1755519188615,137.92,181.93,181.91,2.98]
[1755519188914,137.84,181.98,181.91,2.98]
[1755519189121,2.89,181.97,181.91,2.98]
[1755519189711,2.89,181.97,181.92,0.04159903]
[1755519190120,137.84,181.98,181.93,2.98]
[1755519190322,2.89,181.96,181.93,2.98]
[1755519190622,137.84,181.98,181.93,2.98]
[1755519190819,2.89,181.97,181.94,2.98]
[1755519191521,2.89,181.97,181.95,2.98]
[1755519191921,2.89,181.96,181.95,2.98]
[1755519193323,2.89,181.97,181.93,2.98]
[1755519193522,2.89,181.96,181.93,2.98]
[1755519194023,2.89,181.99,181.92,3.02159903]
[1755519194416,2.89,181.99,181.92,2.98]
[1755519194621,2.89,181.98,181.94,2.98]
[1755519194822,140.87,182.0,181.94,3.02014959]
[1755519195214,2.89,182.06,181.94,4.60380256]
[1755519195420,2.89,182.04,181.95,4.56365297]
[1755519195624,2.89,182.04,181.96,2.98]
[1755519196015,2.89,182.04,181.98,0.03563496]
[1755519196223,2.89,182.03,181.99,2.98]
[1755519196417,369.26,182.07,181.99,2.98]
[1755519196621,4.54992636,182.06,182.01,4.56365297]
[1755519196822,140.75,182.08,182.02,2.98]
[1755519197225,2.89,182.07,182.02,2.98]
[1755519197419,2.89,182.06,182.03,0.03659069]
[1755519197621,7.13718227,182.14,182.03,3.01659069]
[1755519197822,2.89,182.12,182.03,3.01659069]
[1755519198020,2.89,182.1,182.03,2.98]
[1755519198422,2.89,182.1,182.06,0.03732834]
[1755519198621,137.8,182.13,182.07,2.98]
[1755519198822,2.89,182.11,182.07,2.98]
[1755519199422,2.89,182.11,182.08,2.98]
[1755519199622,2.89,182.11,182.06,3.01732834]
[1755519200027,2.89,182.11,182.06,0.03732834]
[1755519201422,2.89,182.11,182.06,3.01732834]
[1755519201628,2.89,182.11,182.06,0.03732834]
[1755519203028,2.89,182.11,182.07,3.08]
[1755519203429,2.89,182.11,182.06,3.11732834]
[1755519206425,7.45365297,182.11,182.06,0.03732834]
[1755519206625,3.06,182.1,182.06,0.03732834]
[1755519206930,53.97009068,182.1,182.06,0.03732834]
[1755519207226,3.06,182.09,182.06,0.03732834]
[1755519210825,50.91009068,182.1,182.06,0.03732834]
[1755519211032,3.06,182.09,182.06,0.03732834]
[1755519212528,3.06,182.07,182.06,3.11732834]
[1755519214638,3.06,182.07,182.06,0.03732834]
[1755519218233,3.06,182.07,182.06,3.11732834]
[1755519219141,53.97009068,182.09,182.07,3.08]
[1755519219342,137.48,182.08,182.07,3.08]
[1755519220540,3.06,182.07,182.06,3.11732834]
[1755519220943,3.06,182.07,182.06,0.03732834]
[1755519221437,3.06,182.07,182.06,3.11732834]
[1755519221835,3.06,182.07,182.06,0.03732834]
[1755519222533,3.06,182.07,182.06,3.11732834]
[1755519223336,3.06,182.07,182.06,0.03732834]
[1755519224445,3.06,182.07,182.0,4.0]
[1755519224446,3.06,182.06,182.0,4.0]
[1755519224744,3.06,182.03,182.02,3.08]
[1755519225044,3.06,182.04,182.03,3.08]
[1755519225932,137.49816379,182.05,182.03,3.08]
[1755519226133,137.49816379,182.05,182.0,4.0]
[1755519226336,140.55816379,182.05,182.01,3.08]
[1755519226532,137.48,182.04,182.01,3.08]
[1755519226740,3.09816379,182.05,182.01,3.08]
[1755519226947,0.03816379,182.05,182.01,3.08]
[1755519227139,137.48,182.04,182.01,3.08]
[1755519228240,140.54,182.04,182.01,3.08]
[1755519228440,137.48,182.04,182.02,3.08]
[1755519229240,3.06,182.03,182.02,3.08]
[1755519229437,137.48,182.04,182.0,4.0]
[1755519229641,140.54,182.04,182.03,3.08]
[1755519230142,140.54,182.04,182.01,3.08]
[1755519230340,3.06,182.03,182.02,3.08]
[1755519231247,140.54,182.04,182.01,3.08]
[1755519231644,3.06,182.03,182.02,3.08]
[1755519232144,2.95,182.02,182.0,4.0]
[1755519232644,2.95,182.02,182.0,6.95]
[1755519232946,2.95,182.03,182.0,4.0]
[1755519233344,2.95,182.01,182.0,4.0]
[1755519233747,2.95,182.01,182.0,3.96127798]
[1755519233947,55.45513369,182.01,181.87,4.56365297]
[1755519234146,146.56869598,182.0,181.97,2.95]
[1755519234341,2.95,181.98,181.97,2.95]
[1755519235243,2.95,181.98,181.88,2.95]
[1755519235850,2.95,181.96,181.88,2.95]
[1755519236045,137.49919019,181.95,181.88,2.95]
[1755519239249,0.03919019,181.95,181.89,4.56365297]
[1755519239550,137.48,181.99,181.93,2.95]
[1755519240141,140.43,181.99,181.93,2.95]
[1755519240354,2.95,181.98,181.93,2.95]
[1755519240751,137.48,181.99,181.94,0.03920851]
[1755519240950,137.48,181.99,181.95,2.95]
[1755519243151,140.43,181.99,181.95,2.95]
[1755519243454,2.95,181.98,181.95,2.95]
[1755519244049,137.48,181.99,181.95,2.95]
[1755519244255,140.43,181.99,181.95,2.95]
[1755519245157,2.95,181.97,181.95,2.95]
[1755519245357,2.95,181.97,181.94,0.03920851]
[1755519246150,4.56365297,181.95,181.94,0.03920851]
[1755519246352,7.51365297,181.95,181.94,0.03920851]
[1755519251373,2.95,181.94,181.79,2.95]
[1755519251665,7.51365297,181.92,181.79,2.95]
[1755519251865,7.51365297,181.92,181.78,4.56365297]
[1755519251866,7.51365297,181.92,181.81,5.4967]
[1755519252065,7.51365297,181.92,181.82,2.95]
[1755519252769,0.0406822,181.89,181.82,2.95]
[1755519255068,2.9906822,181.89,181.82,2.95]
[1755519255772,0.0406822,181.89,181.82,2.95]
[1755519256672,0.0406822,181.89,181.82,8.4463]
[1755519256867,0.0406822,181.89,181.83,2.95]
[1755519257571,0.0406822,181.89,181.84,2.95]
[1755519257774,0.0406822,181.89,181.86,2.95]
[1755519258167,137.48,181.94,181.86,2.95]
[1755519258562,137.48,181.94,181.86,8.445]
[1755519259072,137.48,181.94,181.87,2.95]
[1755519259774,137.48,181.94,181.89,0.04112029]
[1755519259974,140.43,181.94,181.9,2.95]
[1755519260162,137.48,181.94,181.9,2.95]
[1755519260366,2.95,181.92,181.91,2.95]
[1755519260565,2.95,181.93,181.9,2.95]
[1755519260764,7.51365297,181.93,181.89,0.04112029]
[1755519261075,2.95,181.92,181.89,0.04112029]
[1755519261574,2.95,181.91,181.9,2.95]
[1755519261972,4.56365297,181.93,181.89,0.04112029]
[1755519262172,2.95,181.92,181.91,2.95]
[1755519264075,137.48,181.92,181.91,2.95]
[1755519264876,140.5,181.92,181.91,2.95]
[1755519265780,3.02,181.91,181.9,3.16]
[1755519265977,137.48,181.92,181.89,0.04112029]
[1755519266181,137.48,181.92,181.9,3.16]
[1755519266373,137.48,181.92,181.89,0.04112029]
[1755519266679,137.48,181.92,181.9,3.16]
[1755519267075,140.5,181.92,181.91,3.16]
[1755519267676,3.02,181.91,181.89,3.20112029]
[1755519268275,3.02,181.9,181.89,3.20112029]
[1755519268678,191.41009068,181.92,181.89,3.20112029]
[1755519268976,188.39009068,181.92,181.9,3.16]
[1755519269177,3.02,181.91,181.9,3.16]
[1755519269778,188.39009068,181.92,181.9,3.16]
[1755519269978,191.41009068,181.92,181.91,3.16]
[1755519273680,188.39009068,181.92,181.91,3.16]
[1755519275680,191.41009068,181.92,181.91,3.16]
[1755519276888,188.39009068,181.92,181.91,3.16]
[1755519278390,191.41009068,181.92,181.91,3.16]
[1755519278685,140.5,181.92,181.91,3.16]
[1755519279085,140.5,181.92,181.89,0.04112029]
[1755519279383,0.03650102,181.93,181.89,0.04112029]
[1755519279582,137.44,181.92,181.89,0.04112029]
[1755519279989,137.44,181.92,181.9,3.16]
[1755519282282,137.44,181.92,181.89,3.20112029]
[1755519282486,3.02,181.9,181.89,0.04112029]
[1755519282689,3.02,181.9,181.89,3.20112029]
[1755519283291,3.02,181.9,181.89,0.04112029]
[1755519284999,3.02,181.9,181.89,3.20112029]